[Event "*** SCC Grand Prix: Titled Tuesday Blitz"]
[Site "Chess.com"]
[Date "2020.06.02"]
[Round "2"]
[White "Roza_Idrisova"]
[Black "ChessQueen"]
[Result "0-1"]
[WhiteElo "2179"]
[BlackElo "2621"]
[TimeControl "180+1"]
[EndTime "10:17:06 PDT"]
[Termination "ChessQueen won by resignation"]

1. d4 {[%clk 0:03:00.9]} 1... Nf6 {[%clk 0:02:59.2]} 2. Nf3 {[%clk 0:03:01.8]}
2... e6 {[%clk 0:02:58.9]} 3. Bg5 {[%clk 0:02:55.7]} 3... d5 {[%clk 0:02:50.2]}
4. Nbd2 {[%clk 0:02:54.9]} 4... c5 {[%clk 0:02:43.7]} 5. c3 {[%clk 0:02:54.1]}
5... Be7 {[%clk 0:02:40.5]} 6. e3 {[%clk 0:02:53.1]} 6... O-O {[%clk 0:02:38.6]}
7. Bd3 {[%clk 0:02:52.1]} 7... b6 {[%clk 0:02:39]} 8. O-O {[%clk 0:02:51.6]}
8... Bb7 {[%clk 0:02:39.2]} 9. Ne5 {[%clk 0:02:51.6]} 9... Nbd7 {[%clk
0:02:36.4]} 10. f4 {[%clk 0:02:51.4]} 10... Ne4 {[%clk 0:02:35.7]} 11. Bxe7
{[%clk 0:02:47.7]} 11... Qxe7 {[%clk 0:02:35.5]} 12. Nxe4 {[%clk 0:02:42.4]}
12... dxe4 {[%clk 0:02:34.7]} 13. Bc2 {[%clk 0:02:28.4]} 13... Rad8 {[%clk
0:02:28.9]} 14. Qe1 {[%clk 0:02:27]} 14... f6 {[%clk 0:02:20]} 15. Nxd7 {[%clk
0:02:23.9]} 15... Qxd7 {[%clk 0:02:12.5]} 16. Rd1 {[%clk 0:02:23.3]} 16... Qb5
{[%clk 0:02:09.9]} 17. Bb3 {[%clk 0:02:15.9]} 17... c4 {[%clk 0:02:05.1]} 18.
Bc2 {[%clk 0:02:11.1]} 18... Qxb2 {[%clk 0:02:04.9]} 19. Qd2 {[%clk 0:02:02.7]}
19... f5 {[%clk 0:02:00.6]} 20. Rb1 {[%clk 0:01:59.6]} 20... Qa3 {[%clk
0:02:00.3]} 21. Rb4 {[%clk 0:01:56.4]} 21... Bc6 {[%clk 0:01:48.3]} 22. Ra1
{[%clk 0:01:36.6]} 22... b5 {[%clk 0:01:44.8]} 23. Bd1 {[%clk 0:01:30.9]} 23...
a5 {[%clk 0:01:40.6]} 24. Rb2 {[%clk 0:01:30.5]} 24... b4 {[%clk 0:01:35.2]} 25.
Rc1 {[%clk 0:01:26.5]} 25... Bd5 {[%clk 0:01:25.7]} 26. cxb4 {[%clk 0:01:22.3]}
26... axb4 {[%clk 0:01:25.9]} 27. Rxb4 {[%clk 0:01:14.8]} 27... Rb8 {[%clk
0:01:25.9]} 28. Rcb1 {[%clk 0:01:11.4]} 28... Rxb4 {[%clk 0:01:22.1]} 29. Rxb4
{[%clk 0:01:09.3]} 29... c3 {[%clk 0:01:22.3]} 30. Ra4 {[%clk 0:00:35.3]} 30...
Qxa4 {[%clk 0:01:21.5]} 31. Bxa4 {[%clk 0:00:35.2]} 31... cxd2 {[%clk
0:01:21.4]} 32. Kf2 {[%clk 0:00:32.7]} 32... Ra8 {[%clk 0:01:18.7]} 33. Bd1
{[%clk 0:00:30.3]} 33... Rxa2 {[%clk 0:01:17.6]} 34. h3 {[%clk 0:00:27.4]} 34...
Kf7 {[%clk 0:01:16.2]} 35. g3 {[%clk 0:00:26.8]} 35... g6 {[%clk 0:01:14.9]} 36.
h4 {[%clk 0:00:26.4]} 36... h6 {[%clk 0:01:13.5]} 37. Ke2 {[%clk 0:00:24.3]}
37... Ke7 {[%clk 0:01:12.5]} 38. Kf2 {[%clk 0:00:23]} 38... Bc4 {[%clk 0:01:12]}
39. g4 {[%clk 0:00:20.5]} 39... fxg4 {[%clk 0:01:10.1]} 40. Kg3 {[%clk
0:00:16.7]} 40... h5 {[%clk 0:01:08.7]} 41. Kf2 {[%clk 0:00:16]} 41... Kd6
{[%clk 0:01:07.3]} 42. Kg2 {[%clk 0:00:12.9]} 42... Bd3 {[%clk 0:01:06.5]} 43.
Kf2 {[%clk 0:00:12.4]} 43... Bc2 {[%clk 0:01:06.3]} 44. Ke2 {[%clk 0:00:12]}
44... Bxd1+ {[%clk 0:01:05.1]} 45. Kxd1 {[%clk 0:00:12]} 45... g3 {[%clk
0:01:05.2]} 0-1

[Event "*** SCC Grand Prix: Titled Tuesday Blitz"]
[Site "Chess.com"]
[Date "2020.06.02"]
[Round "2"]
[White "GOGIEFF"]
[Black "Munkhzul_Turmunkh"]
[Result "1-0"]
[WhiteElo "2958"]
[BlackElo "2579"]
[TimeControl "180+1"]
[EndTime "10:17:10 PDT"]
[Termination "GOGIEFF won on time"]

1. d4 {[%clk 0:03:00.9]} 1... Nf6 {[%clk 0:02:59.4]} 2. c4 {[%clk 0:03:01.5]}
2... e6 {[%clk 0:02:58.7]} 3. Nc3 {[%clk 0:03:02]} 3... Bb4 {[%clk 0:02:57.4]}
4. e3 {[%clk 0:03:02.1]} 4... O-O {[%clk 0:02:56.6]} 5. Bd3 {[%clk 0:03:02.1]}
5... d5 {[%clk 0:02:53.1]} 6. Nf3 {[%clk 0:03:01.6]} 6... c5 {[%clk 0:02:52]} 7.
O-O {[%clk 0:03:01.2]} 7... dxc4 {[%clk 0:02:49.4]} 8. Bxc4 {[%clk 0:03:01.3]}
8... cxd4 {[%clk 0:02:48.2]} 9. exd4 {[%clk 0:03:02.2]} 9... b6 {[%clk
0:02:46.4]} 10. Qe2 {[%clk 0:03:00.5]} 10... Bb7 {[%clk 0:02:41.2]} 11. Bg5
{[%clk 0:03:01]} 11... Nbd7 {[%clk 0:02:36.7]} 12. Rac1 {[%clk 0:03:00.7]} 12...
h6 {[%clk 0:02:31.2]} 13. Bh4 {[%clk 0:02:59.3]} 13... Rc8 {[%clk 0:02:25.5]}
14. Bb3 {[%clk 0:02:48.9]} 14... a6 {[%clk 0:02:15.3]} 15. Ne5 {[%clk
0:02:41.3]} 15... Nxe5 {[%clk 0:01:45.9]} 16. dxe5 {[%clk 0:02:40.3]} 16... Qd4
{[%clk 0:01:42.7]} 17. Bg3 {[%clk 0:02:24.4]} 17... Ne4 {[%clk 0:01:31.5]} 18.
Rfd1 {[%clk 0:02:19.4]} 18... Nxg3 {[%clk 0:01:06.6]} 19. hxg3 {[%clk
0:02:20.3]} 19... Qc5 {[%clk 0:01:04.4]} 20. a3 {[%clk 0:02:00.7]} 20... Bxc3
{[%clk 0:00:44.3]} 21. Rxc3 {[%clk 0:02:01.6]} 21... Qa5 {[%clk 0:00:41.9]} 22.
Rcd3 {[%clk 0:01:50.6]} 22... Qc5 {[%clk 0:00:30.7]} 23. Rd6 {[%clk 0:01:36.6]}
23... b5 {[%clk 0:00:28.4]} 24. Kh2 {[%clk 0:01:30.1]} 24... a5 {[%clk
0:00:24.8]} 25. f4 {[%clk 0:01:27.7]} 25... a4 {[%clk 0:00:17]} 26. Ba2 {[%clk
0:01:27.6]} 26... Kh8 {[%clk 0:00:13.2]} 27. Bb1 {[%clk 0:01:19.3]} 27... Bd5
{[%clk 0:00:12.2]} 28. f5 {[%clk 0:01:01.6]} 28... Rcd8 {[%clk 0:00:10.5]} 29.
f6 {[%clk 0:00:53.4]} 29... Rxd6 {[%clk 0:00:09.4]} 30. fxg7+ {[%clk 0:00:51.9]}
30... Kxg7 {[%clk 0:00:10.3]} 31. Qg4+ {[%clk 0:00:51.4]} 31... Kh8 {[%clk
0:00:10.2]} 32. Qf4 {[%clk 0:00:51.5]} 32... f5 {[%clk 0:00:02.2]} 33. exd6
{[%clk 0:00:48.6]} 33... Kh7 {[%clk 0:00:02.3]} 34. g4 {[%clk 0:00:45.9]} 34...
Rg8 {[%clk 0:00:01.4]} 35. Bxf5+ {[%clk 0:00:42.7]} 1-0

[Event "*** SCC Grand Prix: Titled Tuesday Blitz"]
[Site "Chess.com"]
[Date "2020.06.02"]
[Round "2"]
[White "TengisChess"]
[Black "MirMan90"]
[Result "1-0"]
[WhiteElo "2515"]
[BlackElo "2722"]
[TimeControl "180+1"]
[EndTime "10:17:10 PDT"]
[Termination "TengisChess won by resignation"]

1. d4 {[%clk 0:03:00.9]} 1... Nf6 {[%clk 0:02:59.4]} 2. Nf3 {[%clk 0:02:58.2]}
2... g6 {[%clk 0:02:59]} 3. Nc3 {[%clk 0:02:55.5]} 3... Bg7 {[%clk 0:02:57.7]}
4. e4 {[%clk 0:02:55.1]} 4... d6 {[%clk 0:02:58.2]} 5. Be2 {[%clk 0:02:55.3]}
5... O-O {[%clk 0:02:58.3]} 6. O-O {[%clk 0:02:55.5]} 6... a6 {[%clk 0:02:58.8]}
7. a4 {[%clk 0:02:54.9]} 7... Nc6 {[%clk 0:02:58]} 8. Re1 {[%clk 0:02:54.9]}
8... e5 {[%clk 0:02:54.7]} 9. dxe5 {[%clk 0:02:54.2]} 9... Nxe5 {[%clk
0:02:52.2]} 10. Nxe5 {[%clk 0:02:53.3]} 10... dxe5 {[%clk 0:02:52.7]} 11. Qxd8
{[%clk 0:02:52.9]} 11... Rxd8 {[%clk 0:02:52.4]} 12. Bg5 {[%clk 0:02:53.8]}
12... Be6 {[%clk 0:02:47.1]} 13. Rad1 {[%clk 0:02:40]} 13... Rd4 {[%clk
0:02:32.9]} 14. f3 {[%clk 0:02:34.2]} 14... Rad8 {[%clk 0:02:20.9]} 15. Be3
{[%clk 0:02:33.8]} 15... R4d7 {[%clk 0:02:08]} 16. Rxd7 {[%clk 0:02:29.1]} 16...
Nxd7 {[%clk 0:02:07.3]} 17. Rd1 {[%clk 0:02:26.9]} 17... Bf8 {[%clk 0:02:05.1]}
18. Nd5 {[%clk 0:02:22.2]} 18... Rc8 {[%clk 0:02:00.4]} 19. Bc4 {[%clk 0:02:13]}
19... Kg7 {[%clk 0:01:57.7]} 20. Kf2 {[%clk 0:02:01.6]} 20... a5 {[%clk
0:01:44.8]} 21. b3 {[%clk 0:01:53.8]} 21... Bc5 {[%clk 0:01:42.3]} 22. g4 {[%clk
0:01:46.2]} 22... Bxe3+ {[%clk 0:01:04.2]} 23. Nxe3 {[%clk 0:01:47.1]} 23... Nc5
{[%clk 0:00:51]} 24. Bxe6 {[%clk 0:01:43.8]} 24... Nxe6 {[%clk 0:00:50.7]} 25.
Nc4 {[%clk 0:01:43.7]} 25... Kf6 {[%clk 0:00:48.9]} 26. Nxa5 {[%clk 0:01:39]}
26... Rb8 {[%clk 0:00:46.5]} 27. Nc4 {[%clk 0:01:36.3]} 27... Nd4 {[%clk
0:00:43.2]} 28. Ne3 {[%clk 0:01:16.3]} 28... c6 {[%clk 0:00:40.1]} 29. b4 {[%clk
0:01:10.3]} 29... Ke7 {[%clk 0:00:35]} 30. c3 {[%clk 0:01:08.7]} 30... Ne6
{[%clk 0:00:35.1]} 31. Nc4 {[%clk 0:01:08.4]} 31... f6 {[%clk 0:00:35.6]} 32. a5
{[%clk 0:01:05]} 32... Nc7 {[%clk 0:00:35.5]} 33. g5 {[%clk 0:01:03.4]} 33...
fxg5 {[%clk 0:00:29.7]} 34. Nxe5 {[%clk 0:01:01]} 34... Nb5 {[%clk 0:00:29.7]}
35. c4 {[%clk 0:00:59.5]} 35... Nd6 {[%clk 0:00:26.7]} 36. c5 {[%clk 0:00:55.4]}
36... Nb5 {[%clk 0:00:26.7]} 37. a6 {[%clk 0:00:43.5]} 37... Ke6 {[%clk
0:00:24.2]} 38. Nd7 {[%clk 0:00:40.6]} 38... Rd8 {[%clk 0:00:16.6]} 39. axb7
{[%clk 0:00:40.8]} 39... Nc3 {[%clk 0:00:16.9]} 40. Rd3 {[%clk 0:00:37.7]} 1-0

[Event "*** SCC Grand Prix: Titled Tuesday Blitz"]
[Site "Chess.com"]
[Date "2020.06.02"]
[Round "2"]
[White "CaspiIsrael"]
[Black "GM_dmitrij"]
[Result "1-0"]
[WhiteElo "2590"]
[BlackElo "2930"]
[TimeControl "180+1"]
[EndTime "10:17:13 PDT"]
[Termination "CaspiIsrael won on time"]

1. e4 {[%clk 0:03:00.9]} 1... e5 {[%clk 0:02:37.3]} 2. Nf3 {[%clk 0:02:59.5]}
2... Nc6 {[%clk 0:02:37.4]} 3. d4 {[%clk 0:02:58.9]} 3... exd4 {[%clk
0:02:38.3]} 4. Nxd4 {[%clk 0:02:59.6]} 4... Nf6 {[%clk 0:02:38.8]} 5. Nc3 {[%clk
0:02:58.4]} 5... Bb4 {[%clk 0:02:35.7]} 6. Nxc6 {[%clk 0:02:58]} 6... bxc6
{[%clk 0:02:36.6]} 7. Bd3 {[%clk 0:02:58.2]} 7... O-O {[%clk 0:02:36.2]} 8. O-O
{[%clk 0:02:57.9]} 8... Re8 {[%clk 0:02:36.6]} 9. Bg5 {[%clk 0:02:54.7]} 9... h6
{[%clk 0:02:35.1]} 10. Bh4 {[%clk 0:02:54.6]} 10... Bxc3 {[%clk 0:02:35]} 11.
bxc3 {[%clk 0:02:54.4]} 11... g5 {[%clk 0:02:35.6]} 12. Bg3 {[%clk 0:02:54.7]}
12... Nxe4 {[%clk 0:02:36.2]} 13. Qh5 {[%clk 0:02:50.1]} 13... d5 {[%clk
0:02:26.5]} 14. Qxh6 {[%clk 0:02:23.2]} 14... Bf5 {[%clk 0:02:22.5]} 15. Qxc6
{[%clk 0:02:04.5]} 15... Rc8 {[%clk 0:02:00.3]} 16. Rfe1 {[%clk 0:01:53.9]}
16... Re6 {[%clk 0:01:59.1]} 17. Qa4 {[%clk 0:01:48.5]} 17... Qe7 {[%clk
0:01:46.6]} 18. Bxe4 {[%clk 0:01:46.4]} 18... Rxe4 {[%clk 0:01:46.3]} 19. Rxe4
{[%clk 0:01:45.8]} 19... Qxe4 {[%clk 0:01:47.2]} 20. Qxa7 {[%clk 0:01:41.4]}
20... Qxc2 {[%clk 0:01:42]} 21. Qe3 {[%clk 0:01:40.8]} 21... Bg6 {[%clk
0:01:27.1]} 22. Qxg5 {[%clk 0:01:35.8]} 22... Re8 {[%clk 0:01:16.8]} 23. Be5
{[%clk 0:01:20]} 23... Qe2 {[%clk 0:00:11.7]} 24. f4 {[%clk 0:01:15.9]} 24...
Qh5 {[%clk 0:00:08.5]} 25. Qf6 {[%clk 0:01:11.1]} 25... Qh6 {[%clk 0:00:08.9]}
26. Re1 {[%clk 0:01:02.9]} 26... c5 {[%clk 0:00:07.9]} 27. f5 {[%clk 0:00:53.2]}
27... Rxe5 {[%clk 0:00:04.8]} 28. Qxe5 {[%clk 0:00:49.3]} 28... Bh5 {[%clk
0:00:04.6]} 29. Qxd5 {[%clk 0:00:44.6]} 29... Qf6 {[%clk 0:00:04.1]} 30. Qxc5
{[%clk 0:00:42.8]} 30... Kh7 {[%clk 0:00:04.7]} 31. Qe5 {[%clk 0:00:41.6]} 31...
Qg5 {[%clk 0:00:04.6]} 32. f6 {[%clk 0:00:40.2]} 32... Qh6 {[%clk 0:00:02.8]}
33. Re3 {[%clk 0:00:36.4]} 1-0

[Event "*** SCC Grand Prix: Titled Tuesday Blitz"]
[Site "Chess.com"]
[Date "2020.06.02"]
[Round "2"]
[White "Philosopherrr"]
[Black "Anwesh9792"]
[Result "1/2-1/2"]
[WhiteElo "2499"]
[BlackElo "2718"]
[TimeControl "180+1"]
[EndTime "10:17:13 PDT"]
[Termination "Game drawn by repetition"]

1. e4 {[%clk 0:03:00.9]} 1... e5 {[%clk 0:02:59.8]} 2. Nf3 {[%clk 0:03:00.2]}
2... Nc6 {[%clk 0:03:00]} 3. Bb5 {[%clk 0:03:00.6]} 3... a6 {[%clk 0:02:59.6]}
4. Ba4 {[%clk 0:03:00.8]} 4... Nf6 {[%clk 0:02:59.9]} 5. O-O {[%clk 0:02:52.3]}
5... Bc5 {[%clk 0:02:59.8]} 6. d3 {[%clk 0:02:52]} 6... b5 {[%clk 0:02:59.1]} 7.
Bb3 {[%clk 0:02:51.8]} 7... d6 {[%clk 0:03:00]} 8. a3 {[%clk 0:02:51]} 8... Bg4
{[%clk 0:02:48.3]} 9. h3 {[%clk 0:02:50.7]} 9... Bxf3 {[%clk 0:02:47.6]} 10.
Qxf3 {[%clk 0:02:49.4]} 10... Nd4 {[%clk 0:02:48.5]} 11. Qd1 {[%clk 0:02:49.8]}
11... Nxb3 {[%clk 0:02:48.3]} 12. cxb3 {[%clk 0:02:50.5]} 12... h6 {[%clk
0:02:43.5]} 13. b4 {[%clk 0:02:50]} 13... Bb6 {[%clk 0:02:40.4]} 14. Qc2 {[%clk
0:02:49.4]} 14... O-O {[%clk 0:02:39.7]} 15. Qc6 {[%clk 0:02:47.6]} 15... Re8
{[%clk 0:02:26.1]} 16. Nc3 {[%clk 0:02:46.7]} 16... Qd7 {[%clk 0:02:16.3]} 17.
Qxd7 {[%clk 0:02:44.9]} 17... Nxd7 {[%clk 0:02:17.2]} 18. Be3 {[%clk 0:02:36.4]}
18... Bxe3 {[%clk 0:02:13.2]} 19. fxe3 {[%clk 0:02:36.4]} 19... c6 {[%clk
0:02:05.3]} 20. Rac1 {[%clk 0:02:35.6]} 20... Rac8 {[%clk 0:02:04.3]} 21. Rc2
{[%clk 0:02:35.6]} 21... Nb6 {[%clk 0:01:59.8]} 22. Rfc1 {[%clk 0:02:34.9]}
22... Nd7 {[%clk 0:01:45.7]} 23. Nd5 {[%clk 0:02:11]} 23... Nb8 {[%clk
0:01:42.9]} 24. g4 {[%clk 0:02:05.5]} 24... f6 {[%clk 0:01:30.8]} 25. Kg2 {[%clk
0:02:03.3]} 25... Kf7 {[%clk 0:01:27.7]} 26. Kg3 {[%clk 0:02:03.5]} 26... Rcd8
{[%clk 0:01:23.8]} 27. Nc3 {[%clk 0:02:02.4]} 27... Nd7 {[%clk 0:01:21.6]} 28.
Ne2 {[%clk 0:02:00.6]} 28... c5 {[%clk 0:01:16.9]} 29. Nc3 {[%clk 0:01:54.8]}
29... Rc8 {[%clk 0:01:06.6]} 30. Nd5 {[%clk 0:01:54.8]} 30... Rc6 {[%clk
0:01:00.7]} 31. bxc5 {[%clk 0:01:53.9]} 31... dxc5 {[%clk 0:00:55.9]} 32. b4
{[%clk 0:01:50.5]} 32... Rec8 {[%clk 0:00:55.6]} 33. Kf3 {[%clk 0:01:45.7]}
33... Ke6 {[%clk 0:00:52.4]} 34. h4 {[%clk 0:01:41.8]} 34... Kd6 {[%clk
0:00:51.8]} 35. g5 {[%clk 0:01:27.5]} 35... hxg5 {[%clk 0:00:49.8]} 36. hxg5
{[%clk 0:01:27.9]} 36... fxg5 {[%clk 0:00:32.9]} 37. Kg3 {[%clk 0:01:18.5]}
37... Nf6 {[%clk 0:00:31.1]} 38. Nb6 {[%clk 0:01:14.5]} 38... R8c7 {[%clk
0:00:24.8]} 39. Na8 {[%clk 0:01:13.1]} 39... Rc8 {[%clk 0:00:21]} 40. Nb6 {[%clk
0:01:12.6]} 40... R8c7 {[%clk 0:00:19.6]} 41. Na8 {[%clk 0:00:43.3]} 41... Rc8
{[%clk 0:00:19.7]} 42. Nb6 {[%clk 0:00:43.2]} 1/2-1/2

[Event "*** SCC Grand Prix: Titled Tuesday Blitz"]
[Site "Chess.com"]
[Date "2020.06.02"]
[Round "2"]
[White "GmSergioBarrientos"]
[Black "robertxbob"]
[Result "0-1"]
[WhiteElo "2598"]
[BlackElo "2204"]
[TimeControl "180+1"]
[EndTime "10:17:13 PDT"]
[Termination "robertxbob won by checkmate"]

1. d4 {[%clk 0:03:00.9]} 1... g6 {[%clk 0:02:56.6]} 2. e4 {[%clk 0:02:59.6]}
2... d6 {[%clk 0:02:52.9]} 3. c4 {[%clk 0:02:59]} 3... Bg7 {[%clk 0:02:50]} 4.
Nc3 {[%clk 0:02:58.9]} 4... Nc6 {[%clk 0:02:48.8]} 5. Nge2 {[%clk 0:02:58.5]}
5... Nf6 {[%clk 0:02:42.8]} 6. f3 {[%clk 0:02:55.4]} 6... O-O {[%clk 0:02:32.8]}
7. Be3 {[%clk 0:02:54.7]} 7... e5 {[%clk 0:02:25.4]} 8. d5 {[%clk 0:02:48]} 8...
Ne7 {[%clk 0:02:10.5]} 9. Qd2 {[%clk 0:02:47.6]} 9... c6 {[%clk 0:02:10.1]} 10.
h4 {[%clk 0:02:41.4]} 10... cxd5 {[%clk 0:02:07.5]} 11. cxd5 {[%clk 0:02:41]}
11... Bd7 {[%clk 0:02:01.4]} 12. h5 {[%clk 0:02:28.9]} 12... a6 {[%clk
0:01:55.8]} 13. g4 {[%clk 0:02:20.6]} 13... b5 {[%clk 0:01:44]} 14. Ng3 {[%clk
0:02:20.4]} 14... Nc8 {[%clk 0:01:23.6]} 15. Bh6 {[%clk 0:02:13.3]} 15... Ra7
{[%clk 0:00:43.1]} 16. Bd3 {[%clk 0:01:51.7]} 16... Nb6 {[%clk 0:00:28.4]} 17.
Nd1 {[%clk 0:01:41.1]} 17... Bc8 {[%clk 0:00:19.5]} 18. Bxg7 {[%clk 0:01:38.4]}
18... Kxg7 {[%clk 0:00:19.4]} 19. Qh6+ {[%clk 0:01:37.5]} 19... Kxh6 {[%clk
0:00:16.7]} 20. Ne3 {[%clk 0:01:38.4]} 20... Kg7 {[%clk 0:00:16.4]} 21. g5
{[%clk 0:01:30.7]} 21... Nxh5 {[%clk 0:00:16]} 22. Rxh5 {[%clk 0:01:18.5]} 22...
gxh5 {[%clk 0:00:16.9]} 23. Nxh5+ {[%clk 0:01:19.4]} 23... Kh8 {[%clk
0:00:16.9]} 24. Nf6 {[%clk 0:01:20.3]} 24... Rg8 {[%clk 0:00:16.6]} 25. Nxg8
{[%clk 0:01:14.7]} 25... Qxg8 {[%clk 0:00:17.5]} 26. Rc1 {[%clk 0:01:12.2]}
26... Qxg5 {[%clk 0:00:16.7]} 27. Ke2 {[%clk 0:01:12.5]} 27... Ra8 {[%clk
0:00:13.1]} 28. Rc6 {[%clk 0:01:11.3]} 28... Rb8 {[%clk 0:00:12.8]} 29. Rxd6
{[%clk 0:01:11.2]} 29... Qh4 {[%clk 0:00:11.4]} 30. b3 {[%clk 0:01:08.7]} 30...
Qh2+ {[%clk 0:00:10.8]} 31. Ke1 {[%clk 0:01:07.6]} 31... Qg1+ {[%clk 0:00:10.8]}
32. Ke2 {[%clk 0:01:07.3]} 32... Qh2+ {[%clk 0:00:09.9]} 33. Ke1 {[%clk
0:01:07.2]} 33... Kg7 {[%clk 0:00:09.3]} 34. Rd8 {[%clk 0:01:04.8]} 34... Rb7
{[%clk 0:00:08.4]} 35. a4 {[%clk 0:01:03.7]} 35... Rc7 {[%clk 0:00:08.5]} 36. a5
{[%clk 0:01:00.5]} 36... Rc1+ {[%clk 0:00:08.4]} 37. Nd1 {[%clk 0:01:00.2]}
37... Qg1+ {[%clk 0:00:07.9]} 38. Bf1 {[%clk 0:00:59.7]} 38... Bh3 {[%clk
0:00:06.8]} 39. Kd2 {[%clk 0:00:56.9]} 39... Ra1 {[%clk 0:00:05.5]} 40. Be2
{[%clk 0:00:55.2]} 40... Qd4+ {[%clk 0:00:04.7]} 41. Ke1 {[%clk 0:00:54.3]}
41... Qg1+ {[%clk 0:00:04.5]} 42. Kd2 {[%clk 0:00:54.4]} 42... Ra2+ {[%clk
0:00:04.6]} 43. Kc3 {[%clk 0:00:52.1]} 43... Qc5+ {[%clk 0:00:04.7]} 44. Kd3
{[%clk 0:00:51.2]} 44... Qd4# {[%clk 0:00:04.7]} 0-1

[Event "*** SCC Grand Prix: Titled Tuesday Blitz"]
[Site "Chess.com"]
[Date "2020.06.02"]
[Round "2"]
[White "isainz"]
[Black "Kolle05"]
[Result "1-0"]
[WhiteElo "2147"]
[BlackElo "2377"]
[TimeControl "180+1"]
[EndTime "10:17:13 PDT"]
[Termination "isainz won by resignation"]

1. e4 {[%clk 0:03:00.9]} 1... c5 {[%clk 0:02:59.7]} 2. Nf3 {[%clk 0:03:00.8]}
2... d6 {[%clk 0:02:59.8]} 3. d4 {[%clk 0:03:00.8]} 3... cxd4 {[%clk 0:03:00.7]}
4. Qxd4 {[%clk 0:03:01]} 4... a6 {[%clk 0:03:00]} 5. c4 {[%clk 0:02:59.8]} 5...
Nc6 {[%clk 0:02:59.7]} 6. Qe3 {[%clk 0:02:59.8]} 6... g6 {[%clk 0:02:59.6]} 7.
Nc3 {[%clk 0:02:58.5]} 7... Bg7 {[%clk 0:03:00]} 8. Be2 {[%clk 0:02:51.3]} 8...
Nf6 {[%clk 0:02:58.7]} 9. h3 {[%clk 0:02:48.4]} 9... O-O {[%clk 0:02:58.4]} 10.
O-O {[%clk 0:02:48.3]} 10... Bd7 {[%clk 0:02:57.2]} 11. Rb1 {[%clk 0:02:44.3]}
11... Rc8 {[%clk 0:02:56.1]} 12. b3 {[%clk 0:02:43.2]} 12... Qa5 {[%clk
0:02:32.5]} 13. Bb2 {[%clk 0:02:37.7]} 13... Qc5 {[%clk 0:01:59.6]} 14. Qxc5
{[%clk 0:02:23.9]} 14... dxc5 {[%clk 0:02:00.5]} 15. Rfd1 {[%clk 0:02:20.9]}
15... Rcd8 {[%clk 0:01:48.5]} 16. Bd3 {[%clk 0:01:49.3]} 16... e6 {[%clk
0:01:35.1]} 17. Na4 {[%clk 0:01:39.8]} 17... Nb4 {[%clk 0:01:29.8]} 18. Nxc5
{[%clk 0:01:32]} 18... Bc6 {[%clk 0:01:26.9]} 19. Be2 {[%clk 0:01:00.3]} 19...
Nxe4 {[%clk 0:01:19.8]} 20. Nxe4 {[%clk 0:00:59.6]} 20... Bxe4 {[%clk
0:01:20.7]} 21. Bxg7 {[%clk 0:00:56.5]} 21... Kxg7 {[%clk 0:01:21.6]} 22. Rxd8
{[%clk 0:00:51.3]} 22... Rxd8 {[%clk 0:01:22.5]} 23. Rb2 {[%clk 0:00:49.7]}
23... Nc6 {[%clk 0:00:55.1]} 24. Kf1 {[%clk 0:00:36.2]} 24... f5 {[%clk
0:00:46]} 25. Ng5 {[%clk 0:00:29.6]} 25... Kf6 {[%clk 0:00:34.2]} 26. Nxh7+
{[%clk 0:00:16.7]} 26... Ke5 {[%clk 0:00:34.2]} 27. Ng5 {[%clk 0:00:16.3]} 27...
Ne7 {[%clk 0:00:10.4]} 28. Nf7+ {[%clk 0:00:15.7]} 1-0

[Event "*** SCC Grand Prix: Titled Tuesday Blitz"]
[Site "Chess.com"]
[Date "2020.06.02"]
[Round "2"]
[White "TudorAnton"]
[Black "harperchesstt"]
[Result "1-0"]
[WhiteElo "2422"]
[BlackElo "2187"]
[TimeControl "180+1"]
[EndTime "10:17:14 PDT"]
[Termination "TudorAnton won on time"]

1. d4 {[%clk 0:03:00.9]} 1... Nf6 {[%clk 0:02:59.2]} 2. c4 {[%clk 0:02:59.4]}
2... e6 {[%clk 0:02:57.6]} 3. Nc3 {[%clk 0:02:58.7]} 3... Bb4 {[%clk 0:02:57.5]}
4. Nf3 {[%clk 0:02:57.3]} 4... c5 {[%clk 0:02:51.9]} 5. g3 {[%clk 0:02:56.5]}
5... b5 {[%clk 0:02:41]} 6. cxb5 {[%clk 0:02:55]} 6... Ne4 {[%clk 0:02:25]} 7.
dxc5 {[%clk 0:02:54]} 7... Nxc3 {[%clk 0:02:18.2]} 8. bxc3 {[%clk 0:02:54.9]}
8... Bxc3+ {[%clk 0:02:18.2]} 9. Bd2 {[%clk 0:02:55.5]} 9... Bxa1 {[%clk
0:02:17.4]} 10. Qxa1 {[%clk 0:02:56.4]} 10... O-O {[%clk 0:02:14.5]} 11. Bc3
{[%clk 0:02:55.4]} 11... f6 {[%clk 0:02:13.9]} 12. Bg2 {[%clk 0:02:55.7]} 12...
Bb7 {[%clk 0:02:14.4]} 13. O-O {[%clk 0:02:55.8]} 13... a5 {[%clk 0:02:08]} 14.
a4 {[%clk 0:02:54.1]} 14... Be4 {[%clk 0:01:40]} 15. Rd1 {[%clk 0:02:52.3]}
15... Qc8 {[%clk 0:01:38.8]} 16. Rd4 {[%clk 0:02:41.2]} 16... Bb7 {[%clk
0:01:14.1]} 17. Qa3 {[%clk 0:02:37.3]} 17... d5 {[%clk 0:01:07.9]} 18. c6 {[%clk
0:02:23.4]} 18... Nxc6 {[%clk 0:01:03.9]} 19. bxc6 {[%clk 0:02:23.6]} 19... Qxc6
{[%clk 0:01:04.3]} 20. Rd1 {[%clk 0:02:08.2]} 20... Rfc8 {[%clk 0:00:58.3]} 21.
Be1 {[%clk 0:02:05.9]} 21... Qc2 {[%clk 0:00:54.1]} 22. Qa1 {[%clk 0:01:55.2]}
22... e5 {[%clk 0:00:48.6]} 23. e3 {[%clk 0:01:53.2]} 23... Bc6 {[%clk 0:00:39]}
24. Bh3 {[%clk 0:01:52.7]} 24... Re8 {[%clk 0:00:28.7]} 25. Rc1 {[%clk
0:01:30.1]} 25... Qxa4 {[%clk 0:00:27.1]} 26. Qc3 {[%clk 0:01:30.2]} 26... Bb7
{[%clk 0:00:17]} 27. Ra1 {[%clk 0:01:26.4]} 27... Qe4 {[%clk 0:00:15.6]} 28. Nh4
{[%clk 0:01:23.5]} 28... d4 {[%clk 0:00:15.3]} 29. f3 {[%clk 0:01:11.6]} 29...
dxc3 {[%clk 0:00:11.8]} 30. fxe4 {[%clk 0:01:11.7]} 30... Bxe4 {[%clk 0:00:12]}
31. Bxc3 {[%clk 0:01:10.9]} 31... g6 {[%clk 0:00:09.6]} 32. Rxa5 {[%clk
0:01:05.8]} 32... Rxa5 {[%clk 0:00:08.6]} 33. Bxa5 {[%clk 0:01:06.7]} 33... Ra8
{[%clk 0:00:08.8]} 34. Bb4 {[%clk 0:00:58.8]} 34... Ra3 {[%clk 0:00:09.2]} 35.
Bxa3 {[%clk 0:00:58.2]} 35... Kf7 {[%clk 0:00:08.2]} 36. Bg2 {[%clk 0:00:58.3]}
36... Bd3 {[%clk 0:00:07.3]} 37. Bd5+ {[%clk 0:00:57.9]} 37... Kg7 {[%clk
0:00:06.6]} 38. e4 {[%clk 0:00:58.8]} 38... f5 {[%clk 0:00:04.5]} 39. exf5
{[%clk 0:00:58.1]} 39... gxf5 {[%clk 0:00:05.4]} 40. Kf2 {[%clk 0:00:58.3]}
40... Kf6 {[%clk 0:00:05.9]} 41. Ke3 {[%clk 0:00:58.6]} 41... Ba6 {[%clk
0:00:06.5]} 42. Bb2 {[%clk 0:00:58.5]} 42... h5 {[%clk 0:00:06.9]} 43. Nf3
{[%clk 0:00:58.9]} 1-0